Workbook

Sheet Test Data
A1: Instructions:
A2: Please enter the green colored cell. This is available in the test report.
A3: Please use the graph from "Graph" tab for the catalog.
A6: Model Name | C6: Louver-500
A7: Application Number | C7: 12345-W1
A8: Graph Title: | C8: ="Water Penetration of "& C6 -> Water Penetration of Louver-500
B10: Free Area Velocity | C10: Carry Over | D10: Include in Regression? | E10: Ln(Net Weight) | F10: LnXi*Yi | G10: (LnXi)2 | H10: # of Points used for Regression Analysis | I10: Average (ln Xi) for n test points | J10: Average Yi for n test points | K10: Sxy | L10: Sxx | M10: B1 | N10: B0 | O10: Beginning point of Water Penetration
B11: Yi | C11: Xi | E11: Ln Xi | H11: n | I11: Average (ln Xi) | J11: Average (Yi) | M11: Sxy/Sxx
A12: Det. No. | B12: (fpm) | C12: (oz/FAAMCA) | O12: (fpm)
A13: 1 | B13: 725 | C13: 0.001 | D13: =IF(ISNUMBER(A13),IF(C13>0,"Yes","No"),"-") -> Yes | E13: =IF(ISNUMBER($A13),IF(D13="Yes",LN(C13),0),"-") -> -6.907755279 | F13: =IF(ISNUMBER($A13),E13*B13,"-") -> -5008.122577 | G13: =IF(ISNUMBER($A13),E13^2,"-") -> 47.71708299 | H13: =COUNTIF(D13:D16, "Yes") -> 4 | I13: =SUM(E13:E17)/H13 -> -5.167905651 | J13: =SUM(B13:B16)/H13 -> 824 | K13: =SUM(F13:F16)-SUM(B13:B16)*SUM(E13:E16)/H13 -> 449.891757 | L13: =SUM(G13:G16)-(SUM(E13:E16))^2/H13 -> 7.348121826 | M13: =K13/L13 -> 61.22540802 | N13: =J13-M13*I13 -> 1140.407132 | O13: =N13+M13*LN(0.01) -> 858.4537085
A14: 2 | B14: 782 | C14: 0.003 | D14: =IF(ISNUMBER(A14),IF(C14>0,"Yes","No"),"-") -> Yes | E14: =IF(ISNUMBER($A14),IF(D14="Yes",LN(C14),0),"-") -> -5.80914299 | F14: =IF(ISNUMBER($A14),E14*B14,"-") -> -4542.749818 | G14: =IF(ISNUMBER($A14),E14^2,"-") -> 33.74614228
A15: 3 | B15: 838 | C15: 0.009 | D15: =IF(ISNUMBER(A15),IF(C15>0,"Yes","No"),"-") -> Yes | E15: -4.710530702 | F15: =IF(ISNUMBER($A15),E15*B15,"-") -> -3947.424728 | G15: 22.18909949
A16: 4 | B16: 951 | C16: 0.039 | D16: =IF(ISNUMBER(A16),IF(C16>0,"Yes","No"),"-") -> Yes | E16: -3.244193633 | F16: =IF(ISNUMBER($A16),E16*B16,"-") -> -3085.228145 | G16: 10.52479233

Sheet Chart Data (hidden)
A1: Chart Data
A4: Chart Title | B4: Model WL-AB-11 A: Size 48" x 48"
A6: Axis Titles | B6: Horizontal: | D6: ="Free Area Velocity (fpm)" -> Free Area Velocity (fpm)
B7: Primary Vertical: | D7: ="Water Penetration per unit Free Area (oz/ft²)" -> Water Penetration per unit Free Area (oz/ft²)
A10: Chart Series Description | B10: Free Area Velocity | C10: Water Penetration per Free Area | D10: FA Velocity Axis Min & Max | E10: WP Axis Min & Max
B11: =TRUE -> TRUE | C11: =TRUE -> TRUE
A12: Series Label | B12: Free Area Velocity | C12: Water Penetration per Free Area
A13: Axis Minimum | B13: - | C13: - | D13: =ROUNDDOWN((B15-60),-2) -> 700 | E13: 0
A14: Axis Maximum | B14: - | C14: - | D14: =B45 -> 1166.693406 | E14: =C44 -> 0.3 | G14: Oz/ft2 | H14: ml/m2
A15: 1 | B15: ='Test Data'!$N$13+'Test Data'!$M$13*LN(C15) -> 858.4537085 | C15: =G15 -> 0.01 | G15: 0.01 | H15: =G15*318.327 -> 3.18327
A16: 2 | B16: ='Test Data'!$N$13+'Test Data'!$M$13*LN(C16) -> 900.8919274 | C16: =G16 -> 0.02 | G16: 0.02 | H16: =G16*318.327 -> 6.36654
A17: 3 | B17: ='Test Data'!$N$13+'Test Data'!$M$13*LN(C17) -> 925.7166941 | C17: =G17 -> 0.03 | G17: 0.03 | H17: =G17*318.327 -> 9.54981
A18: 4 | B18: ='Test Data'!$N$13+'Test Data'!$M$13*LN(C18) -> 943.3301463 | C18: =G18 -> 0.04 | G18: 0.04 | H18: 12.73308
A19: 5 | B19: ='Test Data'!$N$13+'Test Data'!$M$13*LN(C19) -> 956.9922013 | C19: 0.05 | G19: 0.05 | H19: 15.91635
A20: 6 | B20: ='Test Data'!$N$13+'Test Data'!$M$13*LN(C20) -> 968.154913 | C20: 0.06 | G20: 0.06 | H20: 19.09962
A21: 7 | B21: ='Test Data'!$N$13+'Test Data'!$M$13*LN(C21) -> 977.5928513 | C21: 0.07 | G21: 0.07 | H21: 22.28289
A22: 8 | B22: ='Test Data'!$N$13+'Test Data'!$M$13*LN(C22) -> 985.7683653 | C22: 0.08 | G22: 0.08 | H22: 25.46616
A23: 9 | B23: ='Test Data'!$N$13+'Test Data'!$M$13*LN(C23) -> 992.9796797 | C23: 0.09 | G23: 0.09 | H23: 28.64943
A24: 10 | B24: ='Test Data'!$N$13+'Test Data'!$M$13*LN(C24) -> 999.4304203 | C24: 0.1 | G24: 0.1 | H24: 31.8327
A25: 11 | B25: ='Test Data'!$N$13+'Test Data'!$M$13*LN(C25) -> 1005.265825 | C25: 0.11 | G25: 0.11 | H25: 35.01597
A26: 12 | B26: ='Test Data'!$N$13+'Test Data'!$M$13*LN(C26) -> 1010.593132 | C26: 0.12 | G26: 0.12 | H26: 38.19924
A27: 13 | B27: ='Test Data'!$N$13+'Test Data'!$M$13*LN(C27) -> 1015.493779 | C27: 0.13 | G27: 0.13 | H27: 41.38251
A28: 14 | B28: ='Test Data'!$N$13+'Test Data'!$M$13*LN(C28) -> 1020.03107 | C28: 0.14 | G28: 0.14 | H28: 44.56578
A29: 15 | B29: ='Test Data'!$N$13+'Test Data'!$M$13*LN(C29) -> 1024.255187 | C29: 0.15 | G29: 0.15 | H29: 47.74905
A30: 16 | B30: ='Test Data'!$N$13+'Test Data'!$M$13*LN(C30) -> 1028.206584 | C30: 0.16 | G30: 0.16 | H30: 50.93232
A31: 17 | B31: ='Test Data'!$N$13+'Test Data'!$M$13*LN(C31) -> 1031.918351 | C31: 0.17 | G31: 0.17 | H31: 54.11559
A32: 18 | B32: ='Test Data'!$N$13+'Test Data'!$M$13*LN(C32) -> 1035.417899 | C32: 0.18 | G32: 0.18 | H32: 57.29886
A33: 19 | B33: ='Test Data'!$N$13+'Test Data'!$M$13*LN(C33) -> 1038.728186 | C33: 0.19 | G33: 0.19 | H33: 60.48213
A34: 20 | B34: ='Test Data'!$N$13+'Test Data'!$M$13*LN(C34) -> 1041.868639 | C34: 0.2 | G34: 0.2 | H34: 63.6654
A35: 21 | B35: ='Test Data'!$N$13+'Test Data'!$M$13*LN(C35) -> 1044.855837 | C35: 0.21 | G35: 0.21 | H35: 66.84867
A36: 22 | B36: ='Test Data'!$N$13+'Test Data'!$M$13*LN(C36) -> 1047.704044 | C36: 0.22 | G36: 0.22 | H36: 70.03194
A37: 23 | B37: ='Test Data'!$N$13+'Test Data'!$M$13*LN(C37) -> 1050.425621 | C37: 0.23 | G37: 0.23 | H37: 73.21521
A38: 24 | B38: ='Test Data'!$N$13+'Test Data'!$M$13*LN(C38) -> 1053.031351 | C38: 0.24 | G38: 0.24 | H38: 76.39848
A39: 25 | B39: ='Test Data'!$N$13+'Test Data'!$M$13*LN(C39) -> 1055.530694 | C39: 0.25 | G39: 0.25 | H39: 79.58175
A40: 26 | B40: ='Test Data'!$N$13+'Test Data'!$M$13*LN(C40) -> 1057.931998 | C40: 0.26 | G40: 0.26 | H40: 82.76502
A41: 27 | B41: ='Test Data'!$N$13+'Test Data'!$M$13*LN(C41) -> 1060.242665 | C41: 0.27 | G41: 0.27 | H41: 85.94829
A42: 28 | B42: ='Test Data'!$N$13+'Test Data'!$M$13*LN(C42) -> 1062.469289 | C42: 0.28 | G42: 0.28 | H42: 89.13156
A43: 29 | B43: ='Test Data'!$N$13+'Test Data'!$M$13*LN(C43) -> 1064.61777 | C43: 0.29 | G43: 0.29 | H43: 92.31483
A44: 30 | B44: ='Test Data'!$N$13+'Test Data'!$M$13*LN(C44) -> 1066.693406 | C44: 0.3 | G44: 0.3 | H44: 95.4981
B45: =IF(B44>1240,1300,B44+100) -> 1166.693406

Sheet PSW_Sheet (hidden)
